{"text_format":"1","workbook":"xlsx","n_sheets":2,"sheets":["Chuyển đổi Tiền tệ","Tỷ giá Chuyển đổi"],"not_rendered":{"charts":0,"images":1,"macros":1,"external_links":0,"defined_names":7,"comments":0,"pivot_tables":0},"unopened":[],"bounds":{"document_bytes":16777216,"sheet_cells":100000,"rows_first":2000,"rows_last":500,"rows_between":2000,"halvings":0,"cell_chars":16384,"cell_head_chars":4096},"cells_cut":0,"cells_raw":0,"read":"whole","date_system":"1900"}

{"sheet":"Chuyển đổi Tiền tệ","index":0,"n_rows":10,"n_cols":5,"rows_kept":10,"cut":false,"hidden":false,"merged":[]}
[]
[]
[]
[]
[null,null,null,41,6000]
[]
[]
[]
[]
[null,null,null,41,{"$f":"IFERROR(IF(OR(FromCurrency=0,ToCurrency=0),\"\",FromAmount/OFFSET(Currencies,FromCurrency-1,3,1,1)*OFFSET(Currencies,ToCurrency-1,3,1,1)),\"\")","v":""}]

{"sheet":"Tỷ giá Chuyển đổi","index":1,"n_rows":882,"n_cols":3,"rows_kept":882,"cut":false,"hidden":false,"merged":[]}
["Tỷ giá Chuyển đổi"]
["Dữ liệu trên trang tính này được lấy từ truy vấn web MSN Money. Nó được cập nhật khi bấm nút Cập nhật Tỷ giá Chuyển đổi trên trang Chuyển đổi Tiền tệ.             "]
[null,null,"image beaconimage beaconimage beacon"]
[]
[null,null,"dogfood msn back to msn home money"]
[null,"Tên Danh sách"]
[null,{"$f":"IF(ISERROR(FIND(\" to US Dollar\",C7)),C7,LEFT(C7,FIND(\" to US Dollar\",C7)-1))","v":"web search search money search"},"web search search money search"]
[null,{"$f":"IF(ISERROR(FIND(\" to US Dollar\",C8)),C8,LEFT(C8,FIND(\" to US Dollar\",C8)-1))","v":0}]
[null,"Sign in ","Sign in "]
[null,0]
[null,"Connect your Microsoft account","Connect your Microsoft account"]
[null,0]
[null,"A Microsoft account helps us personalize your Microsoft experiences and keeps your music, documents, app favorites, settings and more in sync with your Phone, PC or Xbox.","A Microsoft account helps us personalize your Microsoft experiences and keeps your music, documents, app favorites, settings and more in sync with your Phone, PC or Xbox."]
[null,0]
[null,"Sign in New here? Sign up ","Sign in New here? Sign up "]
[null,"Change language & content:","Change language & content:"]
[null,"Switch to Latino","Switch to Latino"]
[null,"Feedback","Feedback"]
[null,"Make MSN my homepage","Make MSN my homepage"]
[null,0]
[null,"Today","Today"]
[null,"Markets","Markets"]
[null,"Personal Finance","Personal Finance"]
[null,"Real Estate","Real Estate"]
[null,"Careers","Careers"]
[null,"Videos","Videos"]
[null,"Currency Converter","Currency Converter"]
[null,0]
[null,"My Watchlist","My Watchlist"]
[null,"Stock Screener","Stock Screener"]
[null,"Broker Center","Broker Center"]
[null,"Tools","Tools"]
[null,0]
[null,"Home","Home"]
[null,"News","News"]
[null,"Weather","Weather"]
[null,"Entertainment","Entertainment"]
[null,"Sports","Sports"]
[null,"Money","Money"]
[null,0]
[null,"Lifestyle","Lifestyle"]
[null,"Health & Fitness","Health & Fitness"]
[null,"Food & Drink","Food & Drink"]
[null,"Travel","Travel"]
[null,"Autos","Autos"]
[null,"Video","Video"]
[null,0]
[null,"Featured","Featured"]
[]
[null,null,"Inside The Ticker"]
[null,null,"Top Stocks"]
[null,null,"Mutual Funds and ETFs"]
[null,null,"Taxes"]
[null,null,"Insurance"]
[null,null,"Everyday Money"]
[null,null,"Small Business"]
[]
[null,null,"Stock Picks"]
[]
[null,null,"Today's 52-Week Highs"]
[null,null,"Today's 52-Week Lows"]
[null,null,"Volume Shockers"]
[null,null,"Price Shockers"]
[null,null,"High-yield Stocks"]
[null,null,"The Best Blue-Chip Stocks"]
[]
[null,null,"AdChoices "]
[]
[null,null,"The entrance to the Conoco Phillips Los Angeles Refinery."]
[]
[null,null,"‘Big Oil’ Cuts $20 Billion in Five Hours to Shield Dividends"]
[]
[null,null,"Bloomberg"]
[]
[null,null,"Will gold ever top $1,300 again?"]
[]
[null,null,"CNBC"]
[]
[null,null,"The Super Bowl XLIX is displayed on the University of Phoenix Stadium Thursday, Jan. 29, 2015, in Glendale, Ariz."]
[]
[null,null,"This is how your tax dollars paid for the Super Bowl"]
[]
[null,null,"MarketWatch"]
[]
[null,null,"A McDonalds fast food restaurant is seen in Alexandria, Virginia, December 30, 2014. AFP PHOTO / SAUL LOEB        (Photo credit should read SAUL LOEB/AFP/Getty Images)"]
[]
[null,null,"At America's worst-run companies, 2 CEOs are out"]
[]
[null,null,"24/7 Wall St."]
[]
[null,null,"AdChoices "]
[]
[null,null,"Traders work on the floor of the New York Stock Exchange. "]
[]
[null,null,"Stock Futures Fall Before Open"]
[]
[null,null,"Bloomberg "]
[null,null,"A homeowner carries paperwork to a conference room in Detroit's Cobo Center for cases being heard to avoid foreclosure from tax debts in Detroit Thursday, Jan. 29, 2015. Hundreds of Detroit homeowners at risk of losing their property are flocking to hearings that offer them a last-ditch chance to avoid foreclosure from tax debts."]
[]
[null,null,"70% of American families walk a 'financial tightrope'"]
[]
[null,null,"MarketWatch "]
[]
[null,null,"Gross Sees Fed Increasing Rates This Year to End Distortions"]
[]
[null,null,"Bloomberg "]
[null,null,"A man gets gasoline at a BP station in St. Louis, Missouri January 14, 2015."]
[]
[null,null,"Lower gas prices seen fueling U.S. consumer spending in fourth quarter"]
[]
[null,null,"Reuters "]
[null,null,"A father and son discuss finances. "]
[]
[null,null,"U.S. Renters Increase as Kids Finally Leave Parents’ Houses"]
[]
[null,null,"Bloomberg "]
[null,null,"NFL Commissioner Roger Goodell speaks at a news conference to address domestic violence issues and the NFL's Personal Conduct Policy in New York, September 19, 2014. Goodell said on Friday that rules governing personal conduct will change, signaling a major shift in policy in the wake of the league's poor handling of domestic abuse cases."]
[]
[null,null,"Forget Deflategate. Here’s the Real NFL Scandal"]
[]
[null,null,"Fiscal Times "]
[null,null,"A Honda dealership sign is shown at a car lot in Carlsbad, California November 5, 2014."]
[]
[null,null,"Honda cuts profit target as Takata air bag recalls bite"]
[]
[null,null,"Reuters "]
[]
[null,null,"In Focus"]
[]
[null,null,"Current Mortgage Rates"]
[]
[null,null,"DOW"]
[]
[null,null,"DOW"]
[null,null,"▲"]
[null,null,17416.849999999999]
[null,null,225.48]
[null,null,1.3100000000000001E-2]
[null,null,"Last updated time 1/29/2015 4:31 PM EST "]
[null,null,"US Markets Closed"]
[]
[null,null,"NASDAQ"]
[]
[null,null,"NASDAQ"]
[null,null,"▲"]
[null,null,4683.41]
[null,null,45.41]
[null,null,9.7999999999999997E-3]
[]
[null,null,"S&P 500"]
[]
[null,null,"S&P 500"]
[null,null,"▲"]
[null,null,2021.25]
[null,null,19.09]
[null,null,9.4999999999999998E-3]
[]
[null,null,"FTSE 100"]
[]
[null,null,"FTSE 100"]
[null,null,"▼"]
[null,null,6789.3]
[null,null,-21.3]
[null,null,-3.0999999999999999E-3]
[null,null,"Most Active "]
[null,null,"Apple Inc"]
[]
[null,null,"AAPL"]
[]
[null,null,"▲"]
[null,null,118.91]
[null,null,3.53]
[null,null,3.0599999999999999E-2]
[null,null,"Alibaba Group Holding Ltd"]
[]
[null,null,"BABA"]
[]
[null,null,"▼"]
[null,null,89.77]
[null,null,-8.56]
[null,null,-8.6999999999999994E-2]
[null,null,"Bank of America Corporation"]
[]
[null,null,"BAC"]
[]
[null,null,"▲"]
[null,null,15.44]
[null,null,0.23]
[null,null,1.5100000000000001E-2]
[null,null,"Across the market "]
[]
[null,null,"Gold"]
[]
[null,null,"▲"]
[null,null,1263.5]
[null,null,8.9]
[null,null,7.1000000000000004E-3]
[]
[null,null,"Crude Oil"]
[]
[null,null,"▲"]
[null,null,45.08]
[null,null,0.55000000000000004]
[null,null,1.24E-2]
[]
[null,null,"EUR/USD"]
[]
[null,null,"▲"]
[null,null,1.1358999999999999]
[null,null,2.5999999999999999E-3]
[null,null,2.274E-3]
[]
[null,null,"Companies"]
[]
[null,null,"So as not to infringe on the NFL Super Bowl name trademark, all non-rights holders have to use different wording to promote any Super Bowl activity like this Whole Foods grocery store where diners enjoy a meal near promotional signs for \"the big game\" Wednesday, Jan. 28, 2015, in Phoenix."]
[]
[null,null,"Businesses stay clear of using Super Bowl name"]
[]
[null,null,"Associated Press "]
[null,null,"A Honda dealership sign is shown at a car lot in Carlsbad, California November 5, 2014."]
[]
[null,null,"Honda cuts profit target as Takata air bag recalls bite"]
[]
[null,null,"Reuters "]
[null,null,"NFL Commissioner Roger Goodell speaks at a news conference to address domestic violence issues and the NFL's Personal Conduct Policy in New York, September 19, 2014. Goodell said on Friday that rules governing personal conduct will change, signaling a major shift in policy in the wake of the league's poor handling of domestic abuse cases."]
[]
[null,null,"Forget Deflategate. Here’s the Real NFL Scandal"]
[]
[null,null,"Fiscal Times "]
[null,null,"Visa Inc. credit and debit cards are arranged for a photograph in Washington, D.C., U.S., on Wednesday, Jan. 29, 2014."]
[]
[null,null,"Visa profit tops estimates as spending climbs; stock splits"]
[]
[null,null,"Bloomberg "]
[]
[null,null,"Shake Shack prices IPO at $21 a share"]
[]
[null,null,"CNBC "]
[null,null,"FILE - In this Monday, April 7, 2014 file photo, a flag bearing the company logo of Royal Dutch Shell, an Anglo-Dutch oil and gas company, flies outside the head office in The Hague, Netherlands. Royal Dutch Shell PLC, Europe's largest oil company by market value, said Thursday, Jan. 29, 2015 that fourth quarter net income fell 57 percent to $773 million and that it would cap spending this year in response to falling oil prices."]
[]
[null,null,"Shell to revive plans to drill in Arctic"]
[]
[null,null,"Associated Press "]
[]
[null,null,"Markets"]
[]
[null,null,"Traders work on the floor of the New York Stock Exchange. "]
[]
[null,null,"Stock Futures Fall Before Open"]
[]
[null,null,"Bloomberg "]
[null,null,"Tesoro Oil Refinery, Anacortes, Washington State."]
[]
[null,null,"Global Crude Set for Record Run of Monthly Losses on Oversupply"]
[]
[null,null,"Bloomberg "]
[]
[null,null,"A volatile stock market waits for earnings clarity"]
[]
[null,null,"CNBC "]
[null,null,"A sign at an exchange office with headquarters building of the Ministry of Foreign Affairs of the Russian Federation with the Soviet Sign in the background in Moscow, Russia, Thursday, Jan. 29, 2015. The Russian ruble extended its losses on Thursday, declining by 1.5 percent to 69 rubles against the dollar."]
[]
[null,null,"Russia cuts key rate to help economy, but ruble drops"]
[]
[null,null,"Associated Press "]
[]
[null,null,"Earnings releases bring mixed blessings to Asian equities"]
[]
[null,null,"CNBC "]
[]
[null,null,"Gross Sees Fed Increasing Rates This Year to End Distortions"]
[]
[null,null,"Bloomberg "]
[]
[null,null,"Technology"]
[]
[null,null,"Reddit refuses 42% of government data requests"]
[]
[null,null,"CNBC "]
[null,null,"Lei Jun, chairman of Chinese smartphone maker Xiaomi, holds up the latest models of the Xiaomi Note at a press event in Beijing, Jan. 15, 2015."]
[]
[null,null,"Beijing-based Xiaomi is fast emerging as the Apple rival to watch"]
[]
[null,null,"Los Angeles Times "]
[]
[null,null,"Alibaba's magic carpet ride isn't over"]
[]
[null,null,"CNBC "]
[]
[null,null,"Comcast’s Time Warner Cable Bid Set Back by New Broadband Speeds"]
[]
[null,null,"Bloomberg "]
[null,null,"Amazon boxes on a counter in Golden, Colorado."]
[]
[null,null,"Amazon CEO delivers profit while pledging to spend more"]
[]
[null,null,"Bloomberg "]
[null,null,"FILE - In this Jan. 17, 2012 file photo, attendees at the National Retail Federation listen to a discussion about Google Wallet, in New York. Google has gotten into the habit of missing analysts' earnings targets, frustrating investors who believe the online search leader would be more profitable it wasn't pouring so much money into far-flung projects such as Internet-connected eyewear and driverless cars. The latest letdown came Thursday, Jan. 29, 2015, with the release of Google's fourth-quarter financial results. The earnings were well below analysts' predictions, marking the fifth consecutive quarter that Google Inc. hasn't cleared a key hurdle for publicly held companies."]
[]
[null,null,"Google's 4Q earnings disappoint, but CFO eases the letdown"]
[]
[null,null,"Associated Press "]
[]
[null,null,"Real Estate"]
[]
[null,null,"Washington, DC: With income of $98,840 a year, a solo renter would spend about 30 percent of their earnings on rent for this 773-square-foot apartment just a mile from the White House.\n\nIn Chicago, you’d have to make about $67,800 a year as a solo renter to spend just 30 percent of your income on this 3-bedroom, 1.5-bath apartment. It’s in the heart of Chicago’s popular Andersonville neighborhood and allows cats."]
[]
[null,null,"Could You Afford to Rent in These 10 Cities?"]
[]
[null,null,"Zillow "]
[null,null,"A father and son discuss finances. "]
[]
[null,null,"U.S. Renters Increase as Kids Finally Leave Parents’ Houses"]
[]
[null,null,"Bloomberg "]
[]
[null,null,"Live near a Starbucks? What it does to your home's value"]
[]
[null,null,"CNBC "]
[]
[null,null,"Pending home sales drop more than expected"]
[]
[null,null,"CNBC "]
[null,null,"Potential home buyers talk with a real estate agent as they tour a bank owned home in Washington, Illinois."]
[]
[null,null,"Average US rate on 30-year mortgage rises to 3.66 pct."]
[]
[null,null,"Associated Press "]
[]
[null,null,"Weekly mortgage applications drop on tiny rate bump"]
[]
[null,null,"CNBC "]
[]
[null,null,"AdChoices "]
[null,null,"Key Quotes"]
[null,null,"Across the market"]
[null,null,"Quotes across security and market types that are moving the markets today"]
[null,null,"Active "]
[null,null,"Apple Inc"]
[]
[null,null,"AAPL"]
[]
[null,null,"▲"]
[null,null,118.91]
[null,null,3.53]
[null,null,3.0599999999999999E-2]
[null,null,"Alibaba Group Holding Ltd"]
[]
[null,null,"BABA"]
[]
[null,null,"▼"]
[null,null,89.77]
[null,null,-8.56]
[null,null,-8.6999999999999994E-2]
[null,null,"Bank of America Corporation"]
[]
[null,null,"BAC"]
[]
[null,null,"▲"]
[null,null,15.44]
[null,null,0.23]
[null,null,1.5100000000000001E-2]
[null,null,"Currencies "]
[]
[null,null,"Euro €/USD"]
[]
[null,null,"▲"]
[null,null,1.1358999999999999]
[null,null,2.5999999999999999E-3]
[null,null,2.274E-3]
[]
[null,null,"USD/Yen ¥"]
[]
[null,null,"▼"]
[null,null,117.70229999999999]
[null,null,-0.56769999999999998]
[null,null,-4.7999999999999996E-3]
[]
[null,null,"British Pound £/USD"]
[]
[null,null,"▲"]
[null,null,1.5084]
[null,null,6.9999999999999999E-4]
[null,null,4.6900000000000002E-4]
[null,null,"Gainers "]
[null,null,"Harman International Industries Inc"]
[]
[null,null,"HAR"]
[]
[null,null,"▲"]
[null,null,124.98]
[null,null,23.8]
[null,null,0.23519999999999999]
[null,null,"National Bank of Greece"]
[]
[null,null,"NBG"]
[]
[null,null,"▲"]
[null,null,1.21]
[null,null,0.18]
[null,null,0.17469999999999999]
[null,null,"Cardiovascular Systems Inc"]
[]
[null,null,"CSII"]
[]
[null,null,"▲"]
[null,null,35.93]
[null,null,5.2]
[null,null,0.16919999999999999]
[null,null,"Commodities "]
[]
[null,null,"Gold"]
[]
[null,null,"▲"]
[null,null,1263.5]
[null,null,8.9]
[null,null,7.1000000000000004E-3]
[]
[null,null,"Crude Oil"]
[]
[null,null,"▲"]
[null,null,45.08]
[null,null,0.55000000000000004]
[null,null,1.24E-2]
[]
[null,null,"Silver"]
[]
[null,null,"▲"]
[null,null,16.96]
[null,null,0.19]
[null,null,1.11E-2]
[null,null,"Losers "]
[null,null,"Cnova NV"]
[]
[null,null,"CNV"]
[]
[null,null,"▼"]
[null,null,6.29]
[null,null,-1.1499999999999999]
[null,null,-0.15459999999999999]
[null,null,"Albemarle Corp"]
[]
[null,null,"ALB"]
[]
[null,null,"▼"]
[null,null,47.75]
[null,null,-7.6]
[null,null,-0.13730000000000001]
[null,null,"Core Laboratories NV"]
[]
[null,null,"CLB"]
[]
[null,null,"▼"]
[null,null,89.1]
[null,null,-10.76]
[null,null,-0.10780000000000001]
[null,null,"Mortgage Rates "]
[]
[null,null,"30-Year Fixed Mortgage"]
[]
[null,null,3.771E-2]
[null,null,"Last week"]
[null,null,3.7629999999999997E-2]
[]
[null,null,"15-Year Fixed Mortgage"]
[]
[null,null,3.2050000000000002E-2]
[null,null,"Last week"]
[null,null,3.168E-2]
[]
[null,null,"5/1 year ARM"]
[]
[null,null,2.962E-2]
[null,null,"Last week"]
[null,null,2.9260000000000001E-2]
[null,null,"Savings Rates "]
[]
[null,null,"$2,500 Money Market/Savings"]
[]
[null,null,1.15E-3]
[null,null,"Last week"]
[null,null,1.15E-3]
[]
[null,null,"3-Month CD"]
[]
[null,null,1.1199999999999999E-3]
[null,null,"Last week"]
[null,null,1.1199999999999999E-3]
[]
[null,null,"$10,000 Money Market/Savings"]
[]
[null,null,1.2999999999999999E-3]
[null,null,"Last week"]
[null,null,1.2999999999999999E-3]
[null,null,"Credit Card Rates "]
[]
[null,null,"Cash-Back Cards"]
[]
[null,null,0.12902]
[null,null,"Last week"]
[null,null,0.12902]
[]
[null,null,"Frequent Flier Cards"]
[]
[null,null,0.14380999999999999]
[null,null,"Last week"]
[null,null,0.14380999999999999]
[null,null,"Auto Loan "]
[]
[null,null,"3-Year New Car Loan"]
[]
[null,null,3.2649999999999998E-2]
[null,null,"Last week"]
[null,null,3.2629999999999999E-2]
[]
[null,null,"4-Year New Car Loan"]
[]
[null,null,3.4139999999999997E-2]
[null,null,"Last week"]
[null,null,3.4130000000000001E-2]
[null,null,"Data not available"]
[null,null,"Data not available"]
[null,null,"Bonds"]
[null,null,"1-Month T-Bill"]
[null,null,0.01]
[null,null,-0.01]
[null,null,-0.5]
[null,null,"3-Month T-Bill"]
[null,null,0.03]
[null,null,0.01]
[null,null,0.5]
[null,null,"6-Month T-Bill"]
[null,null,7.0000000000000007E-2]
[null,null,-0.01]
[null,null,-0.125]
[null,null,"1-Year T-Bill"]
[null,null,0.17]
[null,null,0]
[null,null,0]
[null,null,"2-Year T-Note"]
[null,null,0.51]
[null,null,0.01]
[null,null,0.02]
[null,null,"3-Year T-Note"]
[null,null,0.84]
[null,null,0.03]
[null,null,3.6999999999999998E-2]
[null,null,"5-Year T-Note"]
[null,null,1.28]
[null,null,0.03]
[null,null,2.4E-2]
[null,null,"10-Year T-Note"]
[null,null,1.77]
[null,null,0.04]
[null,null,2.3099999999999999E-2]
[null,null,"20-Year T-Note"]
[null,null,2.11]
[null,null,0.06]
[null,null,2.93E-2]
[]
[null,null,"Videos"]
[]
[null,null,"Tax Preparer Tricks of the Trade"]
[]
[null,null,"Tax Preparer Tricks of the Trade"]
[]
[null,null,"Money Talks News "]
[null,null,"Truck Drivers Protest Wages and Block Traffic"]
[]
[null,null,"Truck Drivers Protest Wages and Block Traffic"]
[]
[null,null,"Bloomberg "]
[null,null,"Chinese firms on overseas shoppping sprees"]
[]
[null,null,"Chinese firms on overseas shoppping sprees"]
[]
[null,null,"Reuters "]
[null,null,"Air Force One to get upgrade"]
[]
[null,null,"Air Force One to get upgrade"]
[]
[null,null,"CNBC "]
[null,null,"Chinese Seeking Visas Link Up With U.S. Developers"]
[]
[null,null,"Chinese Seeking Visas Link Up With U.S. Developers"]
[]
[null,null,"The Wall Street Journal. "]
[null,null,"Just five automakers running Super Bowl ads"]
[]
[null,null,"Just five automakers running Super Bowl ads"]
[]
[null,null,"Fox Business "]
[]
[null,null,"Russia to Cut Budget For 2018 World Cup Amid Economic Worries"]
[]
[null,null,"The Street "]
[null,null,"Ford Beats Estimates as CEO Looks to 2015 Profit Gain"]
[]
[null,null,"Ford Beats Estimates as CEO Looks to 2015 Profit Gain"]
[]
[null,null,"Bloomberg "]
[]
[null,null,"Sweden's Ikea keeps on growing"]
[]
[null,null,"Sweden's Ikea keeps on growing"]
[]
[null,null,"Reuters "]
[null,null,"The road to keeping one man’s enormous vintage car collection alive"]
[]
[null,null,"The road to keeping an enormous vintage car collection alive"]
[]
[null,null,"Fox Business "]
[null,null,"Forget Yahoo, just buy Alibaba"]
[]
[null,null,"Forget Yahoo, just buy Alibaba"]
[]
[null,null,"CNN Money "]
[null,null,"How Obamacare Will Affect Your Taxes This Year"]
[]
[null,null,"How Obamacare Will Affect Your Taxes This Year"]
[]
[null,null,"Money Talks News "]
[null,null,"Shaky Markets: Get Used to It"]
[]
[null,null,"Shaky Markets: Get Used to It"]
[]
[null,null,"The Wall Street Journal. "]
[null,null,"A new streaming king"]
[]
[null,null,"A new streaming king"]
[]
[null,null,"Fox Business "]
[null,null,"Earnings Scorecard: Measuring Up to Expectations"]
[]
[null,null,"Earnings Scorecard: Measuring Up to Expectations"]
[]
[null,null,"Bloomberg "]
[null,null,"Robot replacements for Foxconn's workers"]
[]
[null,null,"Robot replacements for Foxconn's workers"]
[]
[null,null,"Reuters "]
[]
[null,null,"Small Business"]
[]
[null,null,"Group of office workers in a boardroom presentation. Chris Ryan/OJO Images RF/Getty Images"]
[]
[null,null,"It's Not Too Late: 5 Things Business Owners Should Do in February to Plan for 2015"]
[]
[null,null,"MainStreet "]
[null,null,"In this Tuesday, Jan. 27, 2015 photo, Kristen Harris, owner of Pizzazzed, a home-based baked goods business, displays some of her goodies, in Glenwood, Ill. The drop in gas prices allowed Harris to expand her delivery area; she had to cut it back when prices got too high. She’s considering buying a second delivery truck."]
[]
[null,null,"As the cost of gasoline shrinks, small businesses think big"]
[]
[null,null,"Associated Press "]
[null,null,"How One Family Went Into the Restaurant Business & Actually Made It Work"]
[]
[null,null,"How One Family Went Into the Restaurant Business & Actually Made It Work"]
[]
[null,null,"Credit.com "]
[]
[null,null,"16-year-old creates profitable sneaker pawn shop"]
[]
[null,null,"CNBC "]
[null,null,"Volumes of patent decisions from the Official Gazette of the U.S. Patent and Trademark Office (USPTO) sit at the headquarters' public search facility in Alexandria, Virginia, U.S., on Friday, April 4, 2014. The Senate Judiciary Committee tomorrow plans to mark up a measure that would curb the activities of so-called patent trolls after pulling back the bill last week in the face of opposition from such companies as 3M Co., AstraZeneca Plc, Monsanto Co. and Procter & Gamble Co."]
[]
[null,null,"How 'patent trolls' are killing American innovation"]
[]
[null,null,"Fortune "]
[null,null,"Entrepreneurs working in creative office space."]
[]
[null,null,"How to go from start-up to global phenomenon"]
[]
[null,null,"Fortune "]
[]
[null,null,"Top Stocks"]
[]
[null,null,"Warren Buffett, Chairman of the Board and CEO of Berkshire Hathaway, poses for a portrait in New York October 22, 2013."]
[]
[null,null,"11 stocks Warren Buffett loves for 2015"]
[]
[null,null,"The Street "]
[null,null,"The Marriner S. Eccles Federal Reserve building stands in Washington, D.C., U.S., on Tuesday, Jan. 27, 2015."]
[]
[null,null,"Why Rising Rates Won’t Kill the Bull Market"]
[]
[null,null,"U.S. News & World Report "]
[null,null,"A pedicab rides past a Shake Shack restaurant in the Manhattan borough of New York August 15, 2014."]
[]
[null,null,"Shake Shack's IPO is hot, but can it match Chipotle's?"]
[]
[null,null,"Reuters "]
[]
[null,null,"Magic fades? Alibaba stock plunges on revenue miss"]
[]
[null,null,"CNBC "]
[null,null,"Rolled up stock certificates.  Kord.com/Getty Images"]
[]
[null,null,"10 dividend socks for every sector"]
[]
[null,null,"InvestorPlace "]
[null,null,"2015 Ford F-150"]
[]
[null,null,"What to Expect From Ford Earnings"]
[]
[null,null,"24/7 Wall St. "]
[]
[null,null,"Inside The Ticker"]
[]
[null,null,"Mattel CEO is ousted after disappointing holiday sales"]
[]
[null,null,"Mattel CEO is ousted after disappointing holiday sales"]
[]
[null,null,"Inside the Ticker "]
[null,null,"Wall Street takes a shine to Apple"]
[]
[null,null,"Wall Street takes a shine to Apple"]
[]
[null,null,"Inside the Ticker "]
[null,null,"Starbucks continues to brew up caffeinated results"]
[]
[null,null,"Starbucks continues to brew up caffeinated results"]
[]
[null,null,"Inside the Ticker "]
[null,null,"Why IBM doesn’t compute for many on Wall Street"]
[]
[null,null,"Why IBM doesn’t compute for many on Wall Street"]
[]
[null,null,"Inside the Ticker "]
[null,null,"Will embattled Amazon strike box-office gold?"]
[]
[null,null,"Will embattled Amazon strike box-office gold?"]
[]
[null,null,"Inside the Ticker "]
[null,null,"Target pulls plug on disastrous $4 billion Canada expansion"]
[]
[null,null,"Target pulls plug on disastrous $4 billion Canada expansion"]
[]
[null,null,"Inside the Ticker "]
[]
[null,null,"Taxes"]
[]
[null,null,"Tax form. imacon/Getty Images"]
[]
[null,null,"4 Tax Deductions That Can Save You Big Bucks"]
[]
[null,null,"Fiscal Times "]
[null,null,"Tax form and social security card."]
[]
[null,null,"IRS: Be on Guard For Identity Theft and Other Tax Season Scams"]
[]
[null,null,"MoneyTalksNews "]
[null,null,"Seaplane flying over LeConte glacier, Alaska"]
[]
[null,null,"The 10 Best States for Taxes in 2015"]
[]
[null,null,"Fiscal Times "]
[null,null,"Gas pump nozzle"]
[]
[null,null,"States with the highest (and lowest) gas taxes"]
[]
[null,null,"24/7 Wall St. "]
[]
[null,null,"TurboTax Calculator: TaxCaster Tax Estimator"]
[]
[null,null,"TurboTax Calculator: W-4 Withholding Calculator"]
[]
[null,null,"Popular Slideshows"]
[]
[null,null,"Graduates at Boston University's commencement ceremony on Nickerson Field in Boston, Mass"]
[]
[null,null,"States with the best (and worst) schools"]
[]
[null,null,"24/7 Wall St. "]
[null,null,"Currently under construction, this unique hotel is being built in a 100-meter-deep quarry with an estimated cost of US $523 million. Designed by Atkins, it will feature artificial waterfalls, underwater rooms, and adventure sporting facilities amongst other attractions."]
[]
[null,null,"China's amazing engineering marvels"]
[]
[null,null,"Garbage collector, hotel manager and massage therapist"]
[]
[null,null,"10 High-Paying Jobs for College Dropouts"]
[]
[null,null,"GoBankingRates "]
[null,null,"Man working in server room, woman leading a presentation & Veterinarian examining a dog.   Baran Özdemir/Getty Images; Hero Images/Getty Images; Fuse/Getty Images"]
[]
[null,null,"15 Awesome Jobs That Pay More Than $90K"]
[]
[null,null,"U.S. News & World Report "]
[null,null,"AdChoices "]
[null,null,"From left, University of Michigan Law Quad, statue of Benjamin Franklin at the University of Pennsylvania, University of North Carolina School of Law, Van Hecke-Wettach Building."]
[]
[null,null,"The 50 Best Law Schools In America"]
[]
[null,null,"Business Insider "]
[null,null,"Tax form"]
[]
[null,null,"The Most-Overlooked Tax Deductions"]
[]
[null,null,"Kiplinger "]
[]
[null,null,"Woman giving a presentation, man using a tablet on a construction site & IT worker monitoring servers.  JGI/Jamie Grill/Getty Images; Jetta Productions/Getty Images; Jetta Productions/Getty Images"]
[]
[null,null,"The 25 best jobs of 2015"]
[]
[null,null,"U.S. News & World Report "]
[null,null,"Emma Willard School – Troy, New York"]
[]
[null,null,"The 50 most elite boarding schools in the US"]
[]
[null,null,"Business Insider "]
[null,null,"You may have your own priorities for what to do with $1,000: pay down debt, add to your emergency fund, stash it in retirement savings. We applaud the impulse to bolster your finances—and list these and other staples as part of our collection of ideas. But we also offer surprising suggestions that are equally rewarding.Want to invest it? We assembled ETF, fund and stock picks. Want to spend it? You could splurge on a romantic getaway, improve your home or invest in yourself. Does an extra thousand bucks spark the philanthropist in you? We have tips for smart giving, too."]
[]
[null,null,"32 smart ways to spend $1,000"]
[]
[null,null,"Kiplinger "]
[null,null,"File photo of a man in handcuffs.    Ulrich Baumgarten via Getty Images"]
[]
[null,null,"The 5 most dangerous (and 5 safest) states in America"]
[]
[null,null,"24/7 Wall St. "]
[null,null,"Old store in York, Ala.   Michael S.Williamson/The Washington Post via Getty Images"]
[]
[null,null,"The Poorest County in Each State"]
[]
[null,null,"24/7 Wall St. "]
[null,null,"Starbucks President, Chairman and CEO Howard Schultz is interviewed during a preview of the company's new Reserve Roastery and Tasting Room in conjunction with its biennial investor meeting in Seattle, Washington December 4, 2014.   REUTERS/Jason Redmond  (UNITED STATES - Tags: BUSINESS FOOD) - RTR4GS22"]
[]
[null,null,"16 Billionaires Who Were Once Dirt Poor"]
[]
[null,null,"Business Insider "]
[null,null,"Mother with her baby boy in an aircraft"]
[]
[null,null,"10 of the World’s Most Insulting Fees -- and How to Beat Them"]
[]
[null,null,"Money Talks News "]
[]
[null,null,"Audit stamp on tax form.\nJeffrey Coolidge/Getty Images"]
[]
[null,null,"14 IRS Audit Red Flags"]
[]
[null,null,"Kiplinger "]
[]
[null,null,"© 2015 Microsoft"]
[]
[null,null,"Privacy"]
[null,null,"Legal"]
[null,null,"About our Ads"]
[null,null,"Feedback"]
[null,null,"Help"]
[null,null,"MSN Worldwide"]
[null,null,"Data Providers"]
[null,null,"Money A - Z"]
[null,null,"Money on Android"]
[]
[null,null,"Send Feedback"]
[]
[null,null,"Provide Feedback Report a Problem"]
[]
[null,null,"We appreciate your input!"]
[]
[null,null,"Select a category:"]
[]
[null,null,"I'm having trouble signing into my Microsoft account"]
[]
[null,null,"I’m having problems with the services stripe (Mail, Facebook, etc.)"]
[]
[null,null,"There is an issue with my weather information"]
[]
[null,null,"I see an error in the content"]
[]
[null,null,"Other"]
[]
[null,null,"How we can improve?"]
[null,null,"Upload a Screenshot"]
[]
[null,null,"Please give an overall site rating:"]
[]
[null,null,"Please enter your alias:"]
[null,null,"Submit File Directly to TFS Close"]
[null,null,"Privacy Statement"]
[null,null,"Help"]
[null,null,"Help & Support"]